fUSD/lending_fUSD_20250507
["ID","MTS","AMOUNT","RATE_DAILY","PERIOD"]
[360159337,1746582648197,-460.4588323,0.00019576,2]
[360159338,1746582648207,-450.0,0.00019576,2]
[360159339,1746582648216,-468.61006372,0.00019576,2]
[360159340,1746582648226,-497.49993106,0.00019576,2]
[360159341,1746582648236,-450.0,0.00019576,2]
[360159342,1746582648245,-450.0,0.00019576,2]
[360159343,1746582648255,-260.19952332,0.00019576,2]
[360159344,1746582648265,-450.0,0.00019576,2]
[360159345,1746582648276,-450.0,0.00019576,2]
[360159346,1746582648286,-475.73,0.00019576,2]
[360159347,1746582648295,-450.0,0.00019576,2]
[360159348,1746582648305,-273.29456212,0.00019576,2]
[360159349,1746582648315,-1057.93,0.00019576,2]
[360159350,1746582648326,-1057.93,0.00019576,2]
[360159351,1746582648334,-450.0,0.00019576,2]
[360159352,1746582648344,-464.48237236,0.00019576,2]
[360159353,1746582648355,-617.25,0.00019576,2]
[360159354,1746582648365,-617.25,0.00019576,2]
[360159355,1746582648375,-617.25,0.00019576,2]
[360159356,1746582648386,-450.0,0.00019576,2]
[360159357,1746582648396,-450.0,0.00019576,2]
[360159358,1746582648406,-450.0,0.00019576,2]
[360159359,1746582648416,-450.0,0.00019576,2]
[360159360,1746582648425,-450.0,0.00019576,2]
[360159361,1746582648435,-428.47688154,0.00019576,2]
[360159362,1746582648445,-646.35,0.00019576,2]
[360159363,1746582648454,-646.35,0.00019576,2]
[360159364,1746582648463,-646.35,0.00019576,2]
[360159365,1746582648473,-450.0,0.00019576,2]
[360159366,1746582648483,-151.78935976,0.00019576,2]
[360159367,1746582648492,-489.92176097,0.00019576,2]
[360159368,1746582648501,-690.0,0.00019576,2]
[360159369,1746582648511,-450.0,0.00019576,2]
[360159370,1746582648520,-468.95177208,0.00019576,2]
[360159371,1746582648530,-491.54870027,0.00019576,2]
[360159372,1746582648539,-187.06263958,0.00019576,2]
[360159373,1746582648548,-484.99,0.00019576,2]
[360159374,1746582648558,-450.0,0.00019576,2]
[360159375,1746582648568,-450.0,0.00019576,2]
[360159376,1746582648578,-450.0,0.00019576,2]
[360159377,1746582648587,-391.30209368,0.00019576,2]
[360159378,1746582648597,-450.0,0.00019576,2]
[360159379,1746582648606,-502.63670725,0.00019576,2]
[360159380,1746582648616,-450.0,0.00019576,2]
[360159381,1746582648625,-530.9809213,0.00019576,2]
[360159382,1746582648635,-450.0,0.00019576,2]
[360159383,1746582648644,-460.72647077,0.00019576,2]
[360159384,1746582648654,-450.0,0.00019576,2]
[360159385,1746582648663,-450.0,0.00019576,2]
[360159386,1746582648673,-450.0,0.00019576,2]
[360159387,1746582648683,-450.0,0.00019576,2]
[360159388,1746582648693,-450.0,0.00019576,2]
[360159389,1746582648702,-479.05664306,0.00019576,2]
[360159390,1746582648712,-506.95,0.00019576,2]
[360159391,1746582648722,-506.95,0.00019576,2]
[360159392,1746582648732,-470.37128244,0.00019576,2]
[360159393,1746582648741,-450.0,0.00019576,2]
[360159394,1746582648751,-497.30748789,0.00019576,2]
[360159395,1746582648760,-469.93750943,0.00019576,2]
[360159396,1746582648769,-450.0,0.00019576,2]
[360159397,1746582648779,-450.0,0.00019576,2]
[360159398,1746582648788,-450.0,0.00019576,2]
[360159399,1746582648798,-457.9008804,0.00019576,2]
[360159400,1746582648808,-450.0,0.00019576,2]
[360159401,1746582648817,-495.57227882,0.00019576,2]
[360159402,1746582648827,-471.38088307,0.00019576,2]
[360159403,1746582648837,-450.0,0.00019576,2]
[360159404,1746582648848,-474.3671828,0.00019576,2]
[360159405,1746582648858,-450.0,0.00019576,2]
[360159406,1746582648867,-506.08752774,0.00019576,2]
[360159407,1746582648876,-471.65719108,0.00019576,2]
[360159408,1746582648886,-482.81,0.00019576,2]
[360159409,1746582648895,-492.50492376,0.00019576,2]
[360159410,1746582648905,-450.0,0.00019576,2]
[360159411,1746582648915,-450.0,0.00019576,2]
[360159412,1746582648925,-509.15903126,0.00019576,2]
[360159413,1746582648935,-450.0,0.00019576,2]
[360159414,1746582648945,-522.57426506,0.00019576,2]
[360159415,1746582648955,-500.0,0.00019576,2]
[360159416,1746582648964,-500.0,0.00019576,2]
[360159417,1746582648974,-450.0,0.00019576,2]
[360159418,1746582648984,-464.43982478,0.00019576,2]
[360159419,1746582648994,-481.87873764,0.00019576,2]
[360159420,1746582649004,-450.0,0.00019576,2]
[360159421,1746582649013,-450.0,0.00019576,2]
[360159422,1746582649023,-162.78402606,0.00019576,2]
[360159423,1746582649032,-450.0,0.00019576,2]
[360159424,1746582649042,-479.45391562,0.00019576,2]
[360159425,1746582649052,-450.0,0.00019576,2]
[360159426,1746582649062,-450.0,0.00019576,2]
[360159427,1746582649071,-557.85,0.00019576,2]
[360159428,1746582649081,-450.0,0.00019576,2]
[360159429,1746582649091,-481.19058826,0.00019576,2]
[360159430,1746582649101,-459.61030843,0.00019576,2]
[360159431,1746582649111,-644.54,0.00019576,2]
[360159432,1746582649120,-450.0,0.00019576,2]
[360159433,1746582649130,-644.54,0.00019576,2]
[360159434,1746582649140,-644.54,0.00019576,2]
[360159435,1746582649150,-477.37773396,0.00019576,2]
[360159436,1746582649159,-450.0,0.00019576,2]
[360159437,1746582649169,-278.21801305,0.00019576,2]
[360159438,1746582649178,-450.0,0.00019576,2]
[360159439,1746582649188,-470.0,0.00019576,2]
[360159440,1746582649199,-483.18706019,0.00019576,2]
[360159441,1746582649210,-2000.0,0.00019576,2]
[360159442,1746582649220,-2031.26730325,0.00019576,2]
[360159443,1746582649230,-450.0,0.00019576,2]
[360159444,1746582649241,-450.0,0.00019576,2]
[360159445,1746582649250,-450.0,0.00019576,2]
[360159446,1746582649261,-450.0,0.00019576,2]
[360159447,1746582649276,-470.0,0.00019576,2]
[360159448,1746582649286,-450.0,0.00019576,2]
[360159449,1746582649296,-450.0,0.00019576,2]
[360159450,1746582649307,-450.0,0.00019576,2]
[360159451,1746582649317,-217.91459812,0.00019576,2]
[360159452,1746582649326,-499.75257927,0.00019576,2]
[360159453,1746582649337,-450.0,0.00019576,2]
[360159454,1746582649349,-524.989562,0.00019576,2]
[360159455,1746582649358,-541.5,0.00019576,2]
[360159456,1746582649368,-450.0,0.00019576,2]
[360159457,1746582649378,-450.0,0.00019576,2]
[360159458,1746582649387,-450.0,0.00019576,2]
[360159459,1746582649397,-498.08402264,0.00019576,2]
[360159460,1746582649406,-525.27676205,0.00019576,2]
[360159461,1746582649416,-513.26990028,0.00019576,2]
[360159462,1746582649425,-182.63102817,0.00019576,2]
[360159463,1746582649436,-463.47967899,0.00019576,2]
[360159464,1746582649445,-173.57166656,0.00019576,2]
[360159465,1746582649455,-489.23,0.00019576,2]
[360159466,1746582649464,-482.98353313,0.00019576,2]
[360159467,1746582649474,-450.0,0.00019576,2]
[360159468,1746582649483,-473.64089162,0.00019576,2]
[360159469,1746582649493,-450.0,0.00019576,2]
[360159470,1746582649503,-470.0,0.00019576,2]
[360159471,1746582649512,-450.0,0.00019576,2]
[360159472,1746582649522,-525.71436595,0.00019576,2]
[360159473,1746582649531,-450.0,0.00019576,2]
[360159474,1746582649540,-450.0,0.00019576,2]
[360159475,1746582649550,-450.0,0.00019576,2]
[360159476,1746582649559,-1471.69,0.00019576,2]
[360159477,1746582649569,-481.21950917,0.00019576,2]
[360159478,1746582649578,-1471.69,0.00019576,2]
[360159479,1746582649692,-450.0,0.00019576,2]
[360159480,1746582649703,-450.0,0.00019576,2]
[360159481,1746582649712,-450.0,0.00019576,2]
[360159482,1746582649722,-483.91236958,0.00019576,2]
[360159483,1746582649731,-450.0,0.00019576,2]
[360159484,1746582649740,-450.0,0.00019576,2]
[360159485,1746582649749,-450.0,0.00019576,2]
[360159486,1746582649759,-168.01132534,0.00019576,2]
[360159487,1746582649769,-450.0,0.00019576,2]
[360159488,1746582649778,-521.46,0.00019576,2]
[360159489,1746582649788,-450.0,0.00019576,2]
[360159490,1746582649797,-632.59,0.00019576,2]
[360159491,1746582649807,-450.0,0.00019576,2]
[360159492,1746582649816,-462.28753479,0.00019576,2]
[360159493,1746582649825,-632.59,0.00019576,2]
[360159494,1746582649835,-450.0,0.00019576,2]
[360159495,1746582649845,-465.87573905,0.00019576,2]
[360159496,1746582649855,-485.19557897,0.00019576,2]
[360159497,1746582649865,-450.0,0.00019576,2]
[360159498,1746582649874,-477.62999838,0.00019576,2]
[360159499,1746582649884,-158.42026586,0.00019576,2]
[360159500,1746582649893,-505.06377356,0.00019576,2]
[360159501,1746582649903,-450.0,0.00019576,2]
[360159502,1746582649913,-459.6098273,0.00019576,2]
[360159503,1746582649923,-485.94348206,0.00019576,2]
[360159504,1746582649934,-450.0,0.00019576,2]
[360159505,1746582649944,-450.0,0.00019576,2]
[360159506,1746582649954,-789.68,0.00019576,2]
[360159507,1746582649964,-789.68,0.00019576,2]
[360159508,1746582649973,-789.68,0.00019576,2]
[360159509,1746582649983,-450.0,0.00019576,2]
[360159510,1746582649993,-422.52,0.00019576,2]
[360159511,1746582650002,-450.0,0.00019576,2]
[360159512,1746582650012,-450.0,0.00019576,2]
[360159513,1746582650021,-465.17392935,0.00019576,2]
[360159514,1746582650031,-450.0,0.00019576,2]
[360159515,1746582650041,-487.38300921,0.00019576,2]
[360159516,1746582650050,-450.0,0.00019576,2]
[360159517,1746582650060,-627.15,0.00019576,2]
[360159518,1746582650069,-627.15,0.00019576,2]
[360159519,1746582650079,-450.0,0.00019576,2]
[360159520,1746582650088,-450.0,0.00019576,2]
[360159521,1746582650097,-450.0,0.00019576,2]
[360159522,1746582650107,-450.0,0.00019576,2]
[360159523,1746582650119,-500.57486579,0.00019576,2]
[360159524,1746582650130,-450.0,0.00019576,2]
[360159525,1746582650139,-519.76534624,0.00019576,2]
[360159526,1746582650149,-450.0,0.00019576,2]
[360159527,1746582650158,-450.0,0.00019576,2]
[360159528,1746582650168,-528.97,0.00019576,2]
[360159529,1746582650177,-528.97,0.00019576,2]
[360159530,1746582650187,-450.0,0.00019576,2]
[360159531,1746582650196,-450.0,0.00019576,2]
[360159532,1746582650205,-817.16,0.00019576,2]
[360159533,1746582650215,-450.0,0.00019576,2]
[360159534,1746582650224,-817.16,0.00019576,2]
[360159535,1746582650235,-817.16,0.00019576,2]
[360159536,1746582650245,-450.0,0.00019576,2]
[360159537,1746582650255,-450.0,0.00019576,2]
[360159538,1746582650266,-450.0,0.00019576,2]
[360159539,1746582650280,-450.0,0.00019576,2]
[360159540,1746582650290,-252.6863647,0.00019576,2]
[360159541,1746582650299,-250.23948996,0.00019576,2]
[360159542,1746582650310,-451.83038144,0.00019576,2]
[360159543,1746582650320,-450.0,0.00019576,2]
[360159544,1746582650329,-450.0,0.00019576,2]
[360159545,1746582650339,-450.0,0.00019576,2]
[360159546,1746582650352,-450.0,0.00019576,2]
[360159547,1746582650362,-461.58693403,0.00019576,2]
[360159548,1746582650372,-450.0,0.00019576,2]
[360159549,1746582650381,-463.08196571,0.00019576,2]
[360159550,1746582650390,-313.27008572,0.00019576,2]
[360159551,1746582650399,-450.0,0.00019576,2]
[360159552,1746582650408,-487.19200874,0.00019576,2]
[360159553,1746582650417,-450.0,0.00019576,2]
[360159554,1746582650427,-450.0,0.00019576,2]
[360159555,1746582650436,-450.0,0.00019576,2]
[360159556,1746582650445,-450.0,0.00019576,2]
[360159557,1746582650454,-450.0,0.00019576,2]
[360159558,1746582650463,-450.0,0.00019576,2]
[360159559,1746582650472,-450.0,0.00019576,2]
[360159560,1746582650481,-450.0,0.00019576,2]
[360159561,1746582650490,-450.0,0.00019576,2]
[360159562,1746582650499,-578.49621634,0.00019576,2]
[360159563,1746582650509,-450.0,0.00019576,2]
[360159564,1746582650519,-450.0,0.00019576,2]
[360159565,1746582650528,-677.07,0.00019576,2]
[360159566,1746582650537,-677.07,0.00019576,2]
[360159567,1746582650546,-677.07,0.00019576,2]
[360159568,1746582650556,-695.19,0.00019576,2]
[360159569,1746582650566,-695.19,0.00019576,2]
[360159570,1746582650575,-450.0,0.00019576,2]
[360159571,1746582650584,-450.0,0.00019576,2]
[360159572,1746582650593,-450.0,0.00019576,2]
[360159573,1746582650603,-297.28510195,0.00019576,2]
[360159574,1746582650612,-450.0,0.00019576,2]
[360159575,1746582650621,-450.0,0.00019576,2]
[360159576,1746582650630,-450.0,0.00019576,2]
[360159577,1746582650640,-450.0,0.00019576,2]
[360159578,1746582650649,-450.0,0.00019576,2]
[360159579,1746582650658,-287.1709253,0.00019576,2]
[360159580,1746582650667,-450.0,0.00019576,2]
[360159581,1746582650676,-450.0,0.00019576,2]
[360159582,1746582650685,-450.0,0.00019576,2]
[360159583,1746582650694,-450.0,0.00019576,2]
[360159584,1746582650703,-450.0,0.00019576,2]
[360159585,1746582650712,-450.0,0.00019576,2]
[360159586,1746582650722,-450.0,0.00019576,2]
[360159587,1746582650731,-450.0,0.00019576,2]
[360159588,1746582650740,-450.0,0.00019576,2]
[360159589,1746582650748,-450.0,0.00019576,2]
[360159590,1746582650758,-450.0,0.00019576,2]
[360159591,1746582650768,-341.39847333,0.00019576,2]
[360159592,1746582650777,-565.30983861,0.00019576,2]
[360159593,1746582650787,-185.06303586,0.00019576,2]
[360159594,1746582650796,-1016.85,0.00019576,2]
[360159595,1746582650805,-1016.85,0.00019576,2]
[360159596,1746582650815,-450.0,0.00019576,2]
[360159597,1746582650824,-450.0,0.00019576,2]
[360159598,1746582650833,-450.0,0.00019576,2]
[360159599,1746582650842,-949.38,0.00019576,2]
[360159600,1746582650851,-450.0,0.00019576,2]
[360159601,1746582650861,-450.0,0.00019576,2]
[360159602,1746582650870,-920.95,0.00019576,2]
[360159603,1746582650880,-195.39320509,0.00019576,2]
[360159604,1746582650889,-481.21915782,0.00019576,2]
[360159605,1746582650899,-922.18,0.00019576,2]
[360159606,1746582650908,-189.02483914,0.00019576,2]
[360159607,1746582650917,-474.80669644,0.00019576,2]
[360159608,1746582650927,-450.0,0.00019576,2]
[360159609,1746582650936,-450.0,0.00019576,2]
[360159610,1746582650945,-450.0,0.00019576,2]
[360159611,1746582650955,-450.0,0.00019576,2]
[360159612,1746582650964,-682.16,0.00019576,2]
[360159613,1746582650973,-682.16,0.00019576,2]
[360159614,1746582650982,-450.0,0.00019576,2]
[360159615,1746582650992,-450.0,0.00019576,2]
[360159616,1746582651001,-450.0,0.00019576,2]
[360159617,1746582651011,-450.0,0.00019576,2]
[360159618,1746582651020,-450.0,0.00019576,2]
[360159619,1746582651029,-450.0,0.00019576,2]
[360159620,1746582651038,-450.0,0.00019576,2]
[360159621,1746582651048,-536.9014517,0.00019576,2]
[360159622,1746582651057,-682.65,0.00019576,2]
[360159623,1746582651066,-682.65,0.00019576,2]
[360159624,1746582651075,-450.0,0.00019576,2]
[360159625,1746582651085,-453.43283087,0.00019576,2]
[360159626,1746582651094,-450.0,0.00019576,2]
[360159627,1746582651104,-450.0,0.00019576,2]
[360159628,1746582651113,-450.0,0.00019576,2]
[360159629,1746582651123,-450.0,0.00019576,2]
[360159630,1746582651132,-450.0,0.00019576,2]
[360159631,1746582651141,-450.0,0.00019576,2]
[360159632,1746582651150,-450.0,0.00019576,2]
[360159633,1746582651160,-450.0,0.00019576,2]
[360159634,1746582651169,-768.12,0.00019576,2]
[360159635,1746582651178,-768.12,0.00019576,2]
[360159636,1746582651187,-450.0,0.00019576,2]
[360159637,1746582651292,-450.0,0.00019576,2]
[360159638,1746582651302,-450.0,0.00019576,2]
[360159639,1746582651313,-466.44,0.00019576,2]
[360159640,1746582651322,-466.44,0.00019576,2]
[360159641,1746582651332,-487.86320844,0.00019576,2]
[360159642,1746582651342,-1013.85,0.00019576,2]
[360159643,1746582651352,-1409.65,0.00019576,2]
[360159644,1746582651361,-1409.65,0.00019576,2]
[360159645,1746582651371,-1409.65,0.00019576,2]
[360159646,1746582651381,-450.0,0.00019576,2]
[360159647,1746582651391,-556.54493275,0.00019576,2]
[360159648,1746582651400,-450.0,0.00019576,2]
[360159649,1746582651410,-477.13,0.00019576,2]
[360159650,1746582651419,-450.0,0.00019576,2]
[360159651,1746582651429,-477.13,0.00019576,2]
[360159652,1746582651438,-450.0,0.00019576,2]
[360159653,1746582651447,-450.0,0.00019576,2]
[360159654,1746582651457,-450.0,0.00019576,2]
[360159655,1746582651466,-450.0,0.00019576,2]
[360159656,1746582651476,-450.0,0.00019576,2]
[360159657,1746582651485,-710.81,0.00019576,2]
[360159658,1746582651495,-674.99,0.00019576,2]
[360159659,1746582651504,-881.57,0.00019576,2]
[360159660,1746582651514,-881.57,0.00019576,2]
[360159661,1746582651523,-881.57,0.00019576,2]
[360159662,1746582651532,-450.0,0.00019576,2]
[360159663,1746582651542,-477.84182448,0.00019576,2]
[360159664,1746582651551,-454.91948475,0.00019576,2]
[360159665,1746582651560,-450.0,0.00019576,2]
[360159666,1746582651570,-450.0,0.00019576,2]
[360159667,1746582651579,-450.0,0.00019576,2]
[360159668,1746582651588,-450.0,0.00019576,2]
[360159669,1746582651597,-1672.88,0.00019576,2]
[360159670,1746582651606,-1672.88,0.00019576,2]
[360159671,1746582651616,-1672.88,0.00019576,2]
[360159672,1746582651625,-1240.98,0.00019576,2]
[360159673,1746582651635,-450.0,0.00019576,2]
[360159674,1746582651644,-622.67,0.00019576,2]
[360159675,1746582651654,-450.0,0.00019576,2]
[360159676,1746582651663,-450.0,0.00019576,2]
[360159677,1746582651673,-450.0,0.00019576,2]
[360159678,1746582651683,-450.0,0.00019576,2]
[360159679,1746582651692,-450.0,0.00019576,2]
[360159680,1746582651702,-989.98,0.00019576,2]
[360159681,1746582651711,-2065.68,0.00019576,2]
[360159682,1746582651721,-455.59,0.00019576,2]
[360159683,1746582651730,-455.59,0.00019576,2]
[360159684,1746582651740,-1558.39,0.00019576,2]
[360159685,1746582651750,-1766.43,0.00019576,2]
[360159686,1746582651759,-1766.43,0.00019576,2]
[360159687,1746582651769,-1766.43,0.00019576,2]
[360159688,1746582651780,-450.0,0.00019576,2]
[360159689,1746582651790,-450.0,0.00019576,2]
[360159690,1746582651799,-450.0,0.00019576,2]
[360159691,1746582651809,-492.45730478,0.00019576,2]
[360159692,1746582651819,-450.0,0.00019576,2]
[360159693,1746582651830,-461.13413652,0.00019576,2]
[360159694,1746582651839,-151.0,0.00019576,2]
[360159695,1746582651849,-469.15,0.00019576,2]
[360159696,1746582651858,-515.51,0.00019576,2]
[360159697,1746582651868,-662.42,0.00019576,2]
[360159698,1746582651877,-662.42,0.00019576,2]
[360159699,1746582651887,-975.48,0.00019576,2]
[360159700,1746582651896,-975.48,0.00019576,2]
[360159701,1746582651906,-975.48,0.00019576,2]
[360159702,1746582651915,-450.0,0.00019576,2]
[360159703,1746582651925,-485.94983817,0.00019576,2]
[360159704,1746582651934,-1702.78,0.00019576,2]
[360159705,1746582651943,-2037.93,0.00019576,2]
[360159706,1746582651953,-739.06,0.00019576,2]
[360159707,1746582651962,-151.0,0.00019576,2]
[360159708,1746582651972,-475.63414947,0.00019576,2]
[360159709,1746582651982,-788.8,0.00019576,2]
[360159710,1746582651991,-455.43019022,0.00019576,2]
[360159711,1746582652000,-1002.06,0.00019576,2]
[360159712,1746582652010,-1002.06,0.00019576,2]
[360159713,1746582652020,-1002.06,0.00019576,2]
[360159714,1746582652029,-450.0,0.00019576,2]
[360159715,1746582652039,-218.24481865,0.00019576,2]
[360159716,1746582652048,-450.0,0.00019576,2]
[360159717,1746582652057,-450.0,0.00019576,2]
[360159718,1746582652066,-450.0,0.00019576,2]
[360159719,1746582652077,-450.0,0.00019576,2]
[360159720,1746582652086,-450.0,0.00019576,2]
[360159721,1746582652096,-450.0,0.00019576,2]
[360159722,1746582652105,-2061.48,0.00019576,2]
[360159723,1746582652114,-2061.48,0.00019576,2]
[360159724,1746582652125,-1195.37,0.00019576,2]
[360159725,1746582652134,-1574.72,0.00019576,2]
[360159726,1746582652143,-1574.72,0.00019576,2]
[360159727,1746582652153,-1618.6,0.00019576,2]
[360159728,1746582652163,-151.0,0.00019576,2]
[360159729,1746582652172,-450.0,0.00019576,2]
[360159730,1746582652181,-450.0,0.00019576,2]
[360159731,1746582652190,-511.14071049,0.00019576,2]
[360159732,1746582652200,-1065.09,0.00019576,2]
[360159733,1746582652211,-2046.98,0.00019576,2]
[360159734,1746582652220,-467.39026614,0.00019576,2]
[360159735,1746582652230,-460.42264837,0.00019576,2]
[360159736,1746582652239,-450.0,0.00019576,2]
[360159737,1746582652249,-576.42846474,0.00019576,2]
[360159738,1746582652258,-450.0,0.00019576,2]
[360159739,1746582652269,-450.0,0.00019576,2]
[360159740,1746582652282,-305.43539089,0.00019576,2]
[360159741,1746582652291,-1520.3,0.00019576,2]
[360159742,1746582652300,-1226.66,0.00019576,2]
[360159743,1746582652309,-1226.66,0.00019576,2]
[360159744,1746582652320,-558.85,0.00019576,2]
[360159745,1746582652329,-460.49443361,0.00019576,2]
[360159746,1746582652338,-2012.41,0.00019576,2]
[360159747,1746582652348,-451.33,0.00019576,2]
[360159748,1746582652358,-460.53223488,0.00019576,2]
[360159749,1746582652369,-685.61,0.00019576,2]
[360159750,1746582652378,-450.0,0.00019576,2]
[360159751,1746582652388,-450.0,0.00019576,2]
[360159752,1746582652397,-450.0,0.00019576,2]
[360159753,1746582652406,-450.0,0.00019576,2]
[360159754,1746582652416,-649.44,0.00019576,2]
[360159755,1746582652425,-649.44,0.00019576,2]
[360159756,1746582652435,-1348.17,0.00019576,2]
[360159757,1746582652444,-576.25,0.00019576,2]
[360159758,1746582652453,-576.25,0.00019576,2]
[360159759,1746582652463,-2072.07,0.00019576,2]
[360159760,1746582652472,-1913.53,0.00019576,2]
[360159761,1746582652482,-580.45792051,0.00019576,2]
[360159762,1746582652491,-1913.53,0.00019576,2]
[360159763,1746582652500,-450.0,0.00019576,2]
[360159764,1746582652509,-450.0,0.00019576,2]
[360159765,1746582652519,-1048.2,0.00019576,2]
[360159766,1746582652528,-1048.2,0.00019576,2]
[360159767,1746582652537,-1048.2,0.00019576,2]
[360159768,1746582652547,-515.77,0.00019576,2]
[360159769,1746582652555,-515.77,0.00019576,2]
[360159770,1746582652564,-936.67,0.00019576,2]
[360159771,1746582652574,-667.95,0.00019576,2]
[360159772,1746582652582,-667.95,0.00019576,2]
[360159773,1746582652591,-667.95,0.00019576,2]
[360159774,1746582652600,-450.0,0.00019576,2]
[360159775,1746582652610,-450.0,0.00019576,2]
[360159776,1746582652620,-673.81,0.00019576,2]
[360159777,1746582652629,-204.86104013,0.00019576,2]
[360159778,1746582652638,-526.92,0.00019576,2]
[360159779,1746582652647,-526.92,0.00019576,2]
[360159780,1746582652656,-526.92,0.00019576,2]
[360159781,1746582652665,-656.57,0.00019576,2]
[360159782,1746582652767,-450.0,0.00019576,2]
[360159783,1746582652776,-508.49,0.00019576,2]
[360159784,1746582652786,-508.49,0.00019576,2]
[360159785,1746582652796,-4584.07,0.00019576,2]
[360159786,1746582652805,-1148.6,0.00019576,2]
[360159787,1746582652815,-1148.6,0.00019576,2]
[360159788,1746582652824,-450.0,0.00019576,2]
[360159789,1746582652834,-35302.81,0.00019576,2]
[360159790,1746582652843,-44752.6,0.00019576,2]
[360159791,1746582652853,-450.0,0.00019576,2]
[360159792,1746582652862,-1124.54,0.00019576,2]
[360159793,1746582652871,-1124.54,0.00019576,2]
[360159794,1746582652881,-677.89,0.00019576,2]
[360159795,1746582652890,-450.0,0.00019576,2]
[360159796,1746582652900,-677.89,0.00019576,2]
[360159797,1746582652910,-450.0,0.00019576,2]
[360159798,1746582652919,-843.02,0.00019576,2]
[360159799,1746582652928,-450.0,0.00019576,2]
[360159800,1746582652938,-2170.86,0.00019576,2]
[360159801,1746582652947,-524.86,0.00019576,2]
[360159802,1746582652956,-1030.49,0.00019576,2]
[360159803,1746582652965,-1030.49,0.00019576,2]
[360159804,1746582652975,-450.0,0.00019576,2]
[360159805,1746582652984,-934.11,0.00019576,2]
[360159806,1746582652993,-151.0,0.00019576,2]
[360159807,1746582653002,-450.0,0.00019576,2]
[360159808,1746582653013,-482.43,0.00019576,2]
[360159809,1746582653023,-482.43,0.00019576,2]
[360159810,1746582653032,-450.0,0.00019576,2]
[360159811,1746582653042,-1280.82,0.00019576,2]
[360159812,1746582653052,-1280.82,0.00019576,2]
[360159813,1746582653062,-450.0,0.00019576,2]
[360159814,1746582653072,-2715.06,0.00019576,2]
[360159815,1746582653081,-311.81009177,0.00019576,2]
[360159816,1746582653091,-609.91,0.00019576,2]
[360159817,1746582653100,-609.91,0.00019576,2]
[360159818,1746582653110,-609.91,0.00019576,2]
[360159819,1746582653119,-1788.55,0.00019576,2]
[360159820,1746582653129,-1989.46,0.00019576,2]
[360159821,1746582653139,-1989.46,0.00019576,2]
[360159822,1746582653149,-663.6,0.00019576,2]
[360159823,1746582653159,-9938.79,0.00019576,2]
[360159824,1746582653169,-450.0,0.00019576,2]
[360159825,1746582653178,-450.0,0.00019576,2]
[360159826,1746582653187,-553.03233291,0.00019576,2]
[360159827,1746582653197,-1456.88,0.00019576,2]
[360159828,1746582653207,-1537.94,0.00019576,2]
[360159829,1746582653217,-1537.94,0.00019576,2]
[360159830,1746582653227,-1537.94,0.00019576,2]
[360159831,1746582653237,-450.0,0.00019576,2]
[360159832,1746582653246,-450.0,0.00019576,2]
[360159833,1746582653255,-1747.78,0.00019576,2]
[360159834,1746582653269,-1747.78,0.00019576,2]
[360159835,1746582653278,-450.0,0.00019576,2]
[360159836,1746582653287,-876.67,0.00019576,2]